bitfinex-derivatives/quotes_ETHF0:USTF0_20260123
["timestamp","ask_amount","ask_price","bid_price","bid_amount"]
[1769145884678,0.95326221,2971.4,2970.0,0.14409399]
[1769145884881,0.08253101,2971.9,2970.0,0.14409399]
[1769145885081,0.9530227,2971.8,2970.0,0.14409399]
[1769145885279,0.08217575,2971.6,2970.0,0.14409399]
[1769145885484,0.9530227,2971.5,2970.0,0.14409399]
[1769145885779,0.9530227,2971.4,2970.0,0.14409399]
[1769145885981,0.43981655,2971.3,2970.0,0.14409399]
[1769145886182,0.43981655,2971.2,2970.0,0.14409399]
[1769145886481,0.43981655,2971.1,2970.0,0.14409399]
[1769145886677,0.43981655,2971.0,2970.0,0.14409399]
[1769145886879,0.08217575,2971.6,2970.0,0.14409399]
[1769145887079,1.39240998,2971.5,2970.0,0.14409399]
[1769145887277,1.39240998,2971.4,2970.0,0.14409399]
[1769145887478,0.43975197,2971.3,2970.0,0.14409399]
[1769145887680,0.43975197,2971.2,2970.0,0.14409399]
[1769145887886,0.43975197,2971.1,2970.0,0.14409399]
[1769145888081,6.58016531,2971.9,2970.0,0.14409399]
[1769145888282,1.39226339,2971.8,2970.0,0.14409399]
[1769145888483,1.39226339,2971.7,2970.0,0.14409399]
[1769145888683,1.39226339,2971.6,2970.0,0.14409399]
[1769145888988,6.58016531,2971.9,2970.0,0.14409399]
[1769145888989,1.39226339,2971.5,2970.0,0.14409399]
[1769145889189,1.39226339,2971.4,2970.0,0.14409399]
[1769145889390,0.43970694,2971.3,2970.0,0.14409399]
[1769145889589,0.43970694,2971.2,2970.0,0.14409399]
[1769145889891,0.43970694,2971.1,2970.0,0.14409399]
[1769145890090,6.58016531,2971.9,2970.0,0.14409399]
[1769145890291,1.39210529,2971.8,2970.0,0.14409399]
[1769145890490,1.39210529,2971.7,2970.0,0.14409399]
[1769145890786,1.39210529,2971.6,2970.0,0.14409399]
[1769145890980,6.58016531,2971.9,2970.0,0.14409399]
[1769145890981,1.39210529,2971.5,2970.0,0.14409399]
[1769145891178,0.43965557,2971.4,2970.0,0.14409399]
[1769145891493,0.43965557,2971.3,2970.0,0.14409399]
[1769145891684,6.58016531,2971.9,2970.0,0.14409399]
[1769145891885,1.3925737,2971.8,2970.0,0.14409399]
[1769145892184,1.3925737,2971.7,2970.0,0.14409399]
[1769145892384,1.3925737,2971.6,2970.0,0.14409399]
[1769145892691,1.3925737,2971.5,2970.0,0.14409399]
[1769145892886,1.3925737,2971.4,2970.0,0.14409399]
[1769145893084,0.43980314,2971.3,2970.0,0.14409399]
[1769145893391,0.43980314,2971.2,2970.0,0.14409399]
[1769145893594,0.43980314,2971.1,2970.0,0.14409399]
[1769145893788,0.08229973,2971.8,2970.0,0.14409399]
[1769145894090,1.39318874,2971.7,2970.0,0.14409399]
[1769145894291,1.39318874,2971.6,2970.0,0.14409399]
[1769145894588,1.39318874,2971.5,2970.0,0.14409399]
[1769145894784,0.43999739,2971.4,2970.0,0.14409399]
[1769145894989,0.43999739,2971.3,2970.0,0.14409399]
[1769145895189,0.43999739,2971.2,2970.0,0.14409399]
[1769145895396,0.43999739,2971.1,2970.0,0.14409399]
[1769145895693,0.43999739,2971.0,2969.9,2.80209399]
[1769145895896,0.44028424,2970.9,2969.9,2.80209399]
[1769145896090,0.08270714,2971.6,2969.9,2.80209399]
[1769145896291,1.39418431,2971.5,2969.9,2.80209399]
[1769145896493,1.39418431,2971.4,2969.9,2.80209399]
[1769145896790,0.08270714,2971.6,2969.9,2.80209399]
[1769145896791,0.44035628,2971.3,2969.9,2.80209399]
[1769145896991,0.44035628,2971.2,2969.9,2.80209399]
[1769145897193,0.44035628,2971.1,2969.9,2.80209399]
[1769145897491,0.44035628,2971.0,2969.9,2.80209399]
[1769145897692,0.44035628,2970.9,2969.9,2.80209399]
[1769145897993,0.44035628,2970.8,2970.0,0.14409399]
[1769145898185,0.08250685,2971.7,2970.0,0.14409399]
[1769145898386,1.39488761,2971.6,2970.0,0.14409399]
[1769145898593,1.39488761,2971.5,2970.0,0.14409399]
[1769145898791,1.39488761,2971.4,2970.0,0.14409399]
[1769145899096,0.44052917,2971.3,2970.0,0.14409399]
[1769145899294,0.44052917,2971.2,2970.0,0.14409399]
[1769145899494,0.44052917,2971.1,2970.0,0.14409399]
[1769145899794,0.44052917,2971.0,2970.0,0.14409399]
[1769145900094,0.44052917,2970.9,2970.0,0.14409399]
[1769145900296,0.44052917,2970.8,2970.0,0.14409399]
[1769145900500,0.44073197,2970.7,2969.9,2.658]
[1769145900693,0.44073197,2970.6,2969.6,0.00504736]
[1769145900997,0.44073197,2970.5,2969.6,0.00504736]
[1769145901197,0.44073197,2970.4,2969.6,0.00504736]
[1769145901399,0.44073197,2970.3,2969.6,0.00504736]
[1769145901597,0.08254234,2971.1,2969.6,0.14914135]
[1769145901897,0.13902292,2971.5,2969.6,0.14914135]
[1769145902191,0.9551192,2971.4,2969.8,0.13976178]
[1769145902396,0.9551192,2971.3,2969.8,0.13976178]
[1769145902701,0.9551192,2971.2,2969.8,0.13976178]
[1769145902894,0.13902292,2971.6,2969.8,0.13976178]
[1769145903093,0.13902292,2971.4,2969.8,0.13976178]
[1769145903290,0.13902292,2971.2,2969.8,0.13976178]
[1769145903491,0.95552507,2971.1,2969.8,0.13976178]
[1769145903991,1.09454799,2971.1,2969.7,2.658]
[1769145904186,1.09454799,2971.0,2969.7,2.658]
[1769145904389,0.95552507,2970.9,2969.7,2.658]
[1769145904595,0.95552507,2970.9,2969.6,0.17360736]
[1769145904795,0.95552507,2970.9,2969.6,0.00504736]
[1769145904995,0.14437828,2970.8,2969.6,0.00504736]
[1769145905198,1.09990335,2970.7,2969.6,0.00504736]
[1769145905389,4.19576928,2971.8,2969.6,0.00504736]
[1769145905390,1.09990335,2970.6,2969.6,0.00504736]
[1769145905585,1.09990335,2970.5,2969.6,0.00504736]
[1769145905790,0.14437828,2970.5,2969.6,0.00504736]
[1769145906100,0.95686358,2970.4,2969.6,0.00504736]
[1769145906299,0.14437828,2970.5,2969.6,0.00504736]
[1769145906498,0.95650317,2970.4,2969.6,0.00504736]
[1769145906699,0.14437828,2970.5,2969.6,0.00504736]
[1769145906894,0.95650329,2970.4,2969.6,0.00504736]
[1769145907095,0.14437828,2970.5,2969.6,0.00504736]
[1769145907395,0.95650126,2970.4,2969.6,0.00504736]
[1769145907597,0.14437828,2970.5,2969.6,0.00504736]
[1769145907799,0.95614376,2970.4,2969.6,0.00504736]
[1769145907993,0.14437828,2970.5,2969.6,0.00504736]
[1769145908189,0.95610956,2970.4,2969.6,0.00504736]
[1769145908498,0.14437828,2970.5,2969.6,0.00504736]
[1769145908697,0.95581471,2970.4,2969.6,0.00504736]
[1769145908899,0.14437828,2970.5,2969.6,0.00504736]
[1769145909098,0.95423161,2970.4,2969.6,0.00504736]
[1769145909405,0.14437828,2970.5,2969.6,0.00504736]
[1769145911701,1.09858028,2970.4,2968.9,2.658]
[1769145911898,0.00504736,2970.3,2968.9,2.658]
[1769145912906,0.00504736,2970.3,2968.9,2.79532455]
[1769145913707,0.4353864,2970.2,2968.9,2.79532455]
[1769145913908,0.4353864,2970.1,2968.9,2.79532455]
[1769145914101,0.4353864,2970.0,2969.0,0.13732455]
[1769145914301,0.00348045,2970.0,2969.0,0.13732455]
[1769145919015,0.00348045,2970.0,2968.5,2.79532455]
[1769145919211,0.43501816,2969.9,2968.5,2.79532455]
[1769145919508,0.43501816,2969.8,2968.5,2.79532455]
[1769145919703,0.00348045,2970.0,2968.5,2.79532455]
[1769145919904,0.4349613,2969.9,2968.5,2.79532455]
[1769145920101,0.4349613,2969.8,2968.5,2.79532455]
[1769145920304,0.00348045,2970.0,2968.5,2.79532455]
[1769145920512,0.43491707,2969.9,2968.5,2.79532455]
[1769145920714,0.43491707,2969.8,2968.5,2.79532455]
[1769145920914,0.00348045,2970.0,2968.5,2.79532455]
[1769145921107,0.43491262,2969.9,2968.5,2.79532455]
[1769145921411,0.43491262,2969.8,2968.5,2.79532455]
[1769145921615,0.00348045,2970.0,2968.5,2.79532455]
[1769145921813,0.43490945,2969.9,2968.5,2.79532455]
[1769145922014,0.43490945,2969.8,2968.8,0.30859758]
[1769145922204,0.00348045,2970.0,2968.9,0.13732455]
[1769145922404,0.43495981,2969.9,2968.9,0.13732455]
[1769145922617,0.00348045,2970.0,2968.9,0.13732455]
[1769145922818,0.43494204,2969.9,2968.9,0.13732455]
[1769145923121,0.00348045,2970.0,2968.9,0.13732455]
[1769145923416,0.43498909,2969.9,2968.9,0.13732455]
[1769145923716,0.43498909,2969.8,2968.9,0.13732455]
[1769145924017,0.00348045,2970.0,2968.9,0.13732455]
[1769145924219,0.43497918,2969.9,2968.9,0.13732455]
[1769145924416,0.43497918,2969.8,2968.9,0.13732455]
[1769145924619,0.00348045,2970.0,2968.9,0.13732455]
[1769145924822,0.43504197,2969.9,2968.8,0.00267303]
[1769145925016,0.43504197,2969.8,2968.8,0.00267303]
[1769145925213,0.43504197,2969.7,2968.8,0.00267303]
[1769145925420,0.43504197,2969.6,2968.8,0.00267303]
[1769145925712,0.43504197,2969.5,2968.8,0.00267303]
[1769145925916,0.14785873,2970.0,2968.8,0.00267303]
[1769145926215,1.38837913,2969.9,2968.8,0.00267303]
[1769145926417,0.43504083,2969.8,2968.8,0.00267303]
[1769145926619,0.43504083,2969.7,2968.8,0.00267303]
[1769145926821,0.43504083,2969.6,2968.8,0.00267303]
[1769145927020,0.43504083,2969.5,2968.8,0.00267303]
[1769145927319,0.14785873,2970.0,2968.8,0.00267303]
[1769145927520,1.38879439,2969.9,2968.8,0.00267303]
[1769145927712,0.43517073,2969.8,2968.8,0.00267303]
[1769145927912,0.43517073,2969.7,2968.8,0.00267303]
[1769145928107,0.43517073,2969.6,2968.8,0.00267303]
[1769145928315,0.43517073,2969.5,2968.8,0.00267303]
[1769145928516,0.14785873,2970.0,2968.8,0.00267303]
[1769145928715,1.38901649,2969.9,2968.8,0.00267303]
[1769145928916,0.14437828,2969.7,2968.8,0.00267303]
[1769145929208,0.5796185,2969.6,2968.8,0.00267303]
[1769145929409,0.43524022,2969.5,2968.4,2.658]
[1769145929609,0.14437828,2969.4,2968.1,0.13732455]
[1769145929814,0.43528314,2969.3,2967.7,0.13732455]
[1769145930013,1.38904241,2969.2,2967.8,0.13732455]
[1769145930214,0.43528314,2969.1,2967.8,0.13732455]
[1769145930415,0.43528314,2969.0,2967.8,0.14059271]
[1769145930618,0.00504736,2968.8,2967.8,0.14059271]
[1769145931019,1.44437828,2969.9,2968.2,0.13732455]
[1769145931218,1.38604616,2969.8,2968.2,0.13732455]
[1769145931521,1.38604616,2969.7,2968.2,0.13732455]
[1769145931714,1.38604616,2969.6,2968.2,0.13732455]
[1769145931918,0.43254712,2969.5,2968.2,0.13732455]
[1769145932116,0.43254712,2969.4,2968.2,0.13732455]
[1769145932317,0.43254712,2969.3,2968.2,0.13732455]
[1769145932614,0.14437828,2969.9,2968.2,0.13732455]
[1769145932815,1.38618554,2969.8,2968.2,0.13732455]
[1769145933117,1.38618554,2969.7,2968.2,0.13732455]
[1769145933420,0.43260511,2969.6,2968.2,0.13732455]
[1769145933620,0.14437828,2969.9,2968.2,0.13732455]
[1769145933621,0.43260511,2969.5,2968.2,0.13732455]
[1769145933819,0.43260511,2969.4,2968.2,0.13732455]
[1769145934023,0.43260511,2969.3,2968.2,0.13732455]
[1769145934222,0.14405863,2969.8,2968.2,0.13732455]
[1769145934416,1.38674947,2969.7,2968.2,0.13732455]
[1769145934716,0.43272589,2969.6,2968.2,0.13732455]
[1769145934918,0.43272589,2969.5,2968.2,0.13732455]
[1769145935223,0.43272589,2969.4,2968.2,0.13732455]
[1769145935422,0.14405863,2969.8,2968.2,0.13732455]
[1769145935618,0.00348045,2970.0,2968.7,0.13962334]
[1769145940325,0.14753908,2970.0,2968.4,0.16863]
[1769145940626,1.09753183,2969.9,2968.4,0.16863]
[1769145940819,0.14405863,2969.9,2968.4,0.16863]
[1769145941619,0.00348045,2970.0,2968.5,0.13962334]
[1769145941620,0.14753908,2970.0,2968.5,0.13962334]
[1769145941822,1.09772623,2969.9,2968.5,0.13962334]
[1769145942028,0.9536676,2969.8,2968.5,0.13962334]
[1769145942223,0.14405863,2969.9,2968.5,0.13962334]
[1769145942426,0.95361246,2969.8,2968.5,0.13962334]
[1769145942628,0.14405863,2969.9,2968.5,0.13962334]
[1769145942828,0.95345461,2969.8,2968.5,0.13962334]
[1769145943025,0.14405863,2969.9,2968.5,0.13962334]
[1769145943328,0.95341449,2969.8,2968.5,0.13962334]
[1769145943531,0.14405863,2969.9,2968.5,0.13962334]
[1769145943732,0.95349957,2969.8,2968.5,0.13962334]
[1769145943932,0.14405863,2969.9,2968.5,0.13962334]
[1769145944124,0.95349933,2969.8,2968.5,0.13962334]
[1769145944323,0.14405863,2969.9,2968.5,0.13962334]
[1769145944531,0.9535952,2969.8,2968.5,0.13962334]
[1769145944827,0.14405863,2969.9,2968.4,0.16863]
[1769145945032,1.09765342,2969.8,2968.4,0.16863]
[1769145945234,0.14405863,2969.8,2968.4,0.16863]
[1769145945533,0.95367727,2969.7,2968.4,0.16863]
[1769145945833,0.14405863,2969.8,2968.4,0.16863]
[1769145946029,0.95368103,2969.7,2968.4,0.16863]
[1769145946226,0.14405863,2969.8,2968.4,0.16863]
[1769145946427,0.95381708,2969.7,2968.4,0.16863]
[1769145946626,0.14405863,2969.8,2968.4,0.16863]
[1769145946828,0.95382493,2969.7,2968.4,0.16863]
[1769145947030,0.14405863,2969.8,2968.4,0.16863]
[1769145947228,0.95382633,2969.7,2968.4,0.16863]
[1769145947431,0.14405863,2969.8,2968.4,0.16863]
[1769145947733,1.38199023,2969.7,2968.4,0.16863]
[1769145947943,0.42799618,2969.6,2968.4,0.16863]
[1769145948127,0.42799618,2969.5,2968.4,0.16863]
[1769145948327,0.14405863,2969.8,2968.4,0.16863]
[1769145948534,1.38225276,2969.7,2968.4,0.16863]
[1769145948738,0.42807905,2969.6,2968.4,0.16863]
[1769145948936,0.42807905,2969.5,2968.4,0.16863]
[1769145949138,0.42807905,2969.4,2968.4,0.16863]
[1769145949435,0.42807905,2969.3,2968.5,0.13962334]
[1769145949627,0.00348045,2970.0,2968.5,0.13962334]
[1769145949824,0.00348045,2970.0,2968.5,2.79762334]
[1769145949825,1.38232261,2969.9,2968.5,2.79762334]
[1769145950136,1.38232261,2969.8,2968.5,2.79762334]
[1769145950336,1.38232261,2969.7,2968.5,2.79762334]
[1769145950533,0.42810278,2969.6,2968.5,2.79762334]
[1769145950836,0.42810278,2969.5,2968.5,2.79762334]
[1769145951033,0.42810278,2969.4,2968.5,2.79762334]
[1769145951233,0.42810278,2969.3,2968.5,2.79762334]
[1769145951534,0.00348045,2970.0,2968.5,2.79762334]
[1769145951740,1.37995026,2969.9,2968.5,2.79762334]
[1769145951941,1.37995026,2969.8,2968.5,2.79762334]
[1769145952131,1.37995026,2969.7,2968.5,2.79762334]
[1769145952433,0.42561016,2969.6,2968.6,0.13962334]
[1769145952637,0.42561016,2969.5,2968.6,0.13962334]
[1769145952934,0.42561016,2969.4,2968.6,0.13962334]
[1769145953138,0.42293713,2969.3,2968.6,0.13962334]
[1769145953438,0.00348045,2970.0,2968.6,0.13962334]
[1769145953639,0.95455761,2969.9,2968.6,0.13962334]
[1769145953838,0.95455761,2969.8,2968.6,0.13962334]
[1769145954039,0.00348045,2970.0,2968.6,0.13962334]
[1769145954239,0.95455852,2969.9,2968.6,0.13962334]
[1769145954431,0.95455852,2969.8,2968.6,0.13962334]
[1769145954738,0.00348045,2970.0,2968.6,0.13962334]
[1769145955037,0.95479131,2969.9,2968.6,0.13962334]
[1769145955340,0.95479131,2969.8,2968.6,0.13962334]
[1769145955543,0.00348045,2970.0,2968.6,0.13962334]
[1769145955740,0.95479222,2969.9,2968.7,0.13962334]
[1769145955939,0.00348045,2970.0,2968.7,0.13962334]
[1769145956839,0.00348045,2970.0,2969.0,0.88853652]
[1769145958139,0.00348045,2970.0,2969.3,0.88853652]
[1769145958340,0.00348045,2970.0,2969.0,0.88853652]
[1769145960242,0.00348045,2970.0,2968.8,2.658]
[1769145960441,0.14753908,2970.0,2968.8,2.658]
[1769145961744,0.88853652,2969.9,2968.8,2.658]
[1769145961941,0.14753908,2970.0,2968.1,4.1907813]
[1769145961942,0.88853652,2969.0,2968.1,4.1907813]
[1769145962139,0.88853652,2969.0,2967.8,0.00326816]
[1769145962636,0.95339124,2968.9,2967.8,0.00326816]
[1769145962842,0.95339124,2968.8,2967.8,0.00326816]
[1769145963043,0.95347747,2968.7,2967.8,0.00326816]
[1769145963244,0.1371235,2968.8,2967.8,0.00326816]
[1769145963447,1.08970394,2968.7,2967.8,0.00326816]
[1769145963647,0.95258175,2968.6,2967.8,0.00326816]
[1769145963843,0.1371235,2968.7,2967.8,0.00326816]
[1769145964049,0.95255885,2968.6,2967.8,0.00326816]
[1769145964245,0.1371235,2968.4,2966.6,0.14186428]
[1769145964441,0.1371235,2968.2,2966.6,0.14186428]
[1769145965136,0.14944228,2968.0,2966.6,0.00294767]
[1769145965340,0.14944228,2967.9,2966.6,0.00294767]
[1769145965541,0.00428972,2967.9,2966.6,0.15134061]
[1769145966550,0.00428972,2967.9,2966.6,0.00294767]
[1769145966844,0.00428972,2967.9,2965.7,4.98581395]
[1769145966845,0.14944228,2967.7,2965.7,0.14839294]
[1769145967044,0.42109352,2967.6,2965.7,0.14839294]
[1769145967838,0.42109352,2967.6,2965.7,0.15235247]
[1769145968038,0.14944228,2967.7,2965.7,0.15235247]
[1769145968238,0.14944228,2967.5,2965.7,0.15235247]
[1769145968842,0.14944228,2967.5,2966.3,0.00505595]
[1769145969846,0.00428972,2967.9,2966.3,0.15344889]
[1769145970046,0.41982572,2967.8,2966.3,0.15344889]
[1769145970241,0.00428972,2967.9,2966.3,0.15344889]
[1769145971036,0.153732,2967.9,2966.3,0.15344889]
[1769145971241,0.153732,2967.9,2966.3,0.00505595]
[1769145972645,0.14944228,2967.7,2966.3,0.00505595]
[1769145973649,0.14944228,2967.7,2965.7,0.00395953]
[1769145973947,0.14944228,2967.2,2965.7,0.00395953]
[1769145975352,0.00505595,2967.3,2965.7,0.15235247]
[1769145975850,0.14944228,2967.1,2964.6,0.14839294]
[1769145976048,0.14944228,2966.9,2964.6,0.14839294]
[1769145976645,0.00505595,2966.0,2964.6,0.14839294]
[1769145976857,0.00505595,2966.0,2964.7,0.14839294]
[1769145977749,0.14944228,2966.9,2965.2,0.14839294]
[1769145978355,1.3,2967.2,2965.2,0.14839294]
[1769145978752,0.14944228,2967.3,2965.2,0.14839294]
[1769145979254,1.44944228,2967.3,2965.2,0.14839294]
[1769145979456,0.14944228,2967.2,2965.2,0.14839294]
[1769145982546,0.14944228,2967.7,2965.4,0.14839294]
[1769145982951,0.14944228,2967.7,2965.5,0.31718294]
[1769145983158,0.14944228,2967.7,2965.6,0.14839294]
[1769145984560,0.14944228,2967.7,2965.7,0.14839294]
[1769145985963,0.14944228,2967.7,2965.8,0.14839294]
[1769145986866,0.89026133,2967.5,2966.0,0.89026133]
[1769145988466,0.00428972,2967.9,2967.0,0.89026133]
[1769145988760,0.00428972,2967.9,2967.0,0.89452604]
[1769145988961,0.00428972,2967.9,2967.0,0.00426471]
[1769145989864,0.00134205,2967.9,2967.0,0.15265765]
[1769145991868,0.14944228,2968.7,2967.0,0.15265765]
[1769145992165,1.37074816,2968.6,2967.0,0.15265765]
[1769145992356,1.37074816,2968.5,2967.0,0.15265765]
[1769145992553,0.42016548,2968.4,2967.0,0.15265765]
[1769145992756,0.00427908,2968.4,2967.0,0.15265765]
[1769145992952,0.42039112,2968.3,2967.0,0.15265765]
[1769145993158,0.00427908,2968.4,2967.0,0.15265765]
[1769145993358,0.42044284,2968.3,2967.1,0.14798232]
[1769145993557,0.00427908,2968.4,2967.1,0.14798232]
[1769145994068,0.00427908,2968.4,2967.5,0.00505595]
[1769145994868,0.00427908,2968.4,2967.5,0.15303827]
[1769145996369,1.3,2969.6,2967.5,0.15303827]
[1769145996370,0.14402978,2969.5,2967.6,0.14798232]
[1769145996565,0.14402978,2969.3,2967.6,0.14798232]
[1769145996763,1.51318457,2969.2,2967.6,0.14798232]
[1769145997063,1.36915479,2969.1,2967.6,0.14798232]
[1769145997270,0.41965116,2969.0,2967.6,0.14798232]
[1769145997468,0.00433591,2969.0,2967.6,0.14798232]
[1769145997868,0.41944738,2968.9,2967.6,0.14798232]
[1769145998069,0.00433591,2969.0,2967.6,0.14798232]
[1769145998367,0.41944766,2968.9,2967.6,0.14798232]
[1769145998566,0.00433591,2969.0,2967.6,0.14798232]
[1769145998769,0.41926946,2968.9,2967.6,0.14798232]
[1769145998963,0.00433591,2969.0,2967.6,0.14798232]
[1769145999267,0.41926945,2968.9,2967.6,0.14798232]
[1769145999464,0.00433591,2969.0,2967.6,0.14798232]
[1769146001761,0.00433591,2969.0,2967.7,0.14798232]
[1769146001960,0.00433591,2969.0,2967.9,0.14798232]
[1769146006568,0.14836569,2969.0,2967.5,0.15303827]
[1769146006872,0.14402978,2968.8,2967.5,0.00505595]
[1769146008466,0.14402978,2968.6,2967.0,0.00426471]
[1769146008768,0.14908573,2968.4,2967.0,0.00426471]
[1769146008974,0.14402978,2968.2,2967.0,0.00426471]
[1769146010666,0.00505595,2968.4,2967.0,0.00426471]
[1769146010973,0.41821032,2968.3,2967.0,0.00426471]
[1769146011169,0.00505595,2968.4,2967.0,0.00426471]
[1769146011372,0.41820942,2968.3,2967.0,0.00426471]
[1769146011570,0.00505595,2968.4,2967.0,0.00426471]
[1769146011774,0.41841596,2968.3,2967.0,0.00426471]
[1769146012074,0.00505595,2968.4,2967.0,0.00426471]
[1769146012276,0.41841306,2968.3,2967.0,0.00426471]
[1769146012575,0.00505595,2968.4,2967.0,0.00426471]
[1769146012774,0.41864482,2968.3,2967.0,0.00426471]
[1769146013075,0.00505595,2968.4,2967.0,0.00426471]
[1769146013275,0.41864525,2968.3,2967.0,0.00426471]
[1769146013466,0.41864525,2968.2,2967.0,0.00426471]
[1769146013773,0.00505595,2968.4,2967.0,0.00426471]
[1769146014069,0.4188398,2968.3,2967.0,0.00426471]
[1769146014271,0.4188398,2968.2,2967.0,0.00426471]
[1769146014473,0.00505595,2968.4,2967.0,0.00426471]
[1769146014663,0.41903479,2968.3,2967.0,0.00426471]
[1769146014972,0.00505595,2968.4,2967.0,0.00426471]
[1769146015168,0.41903479,2968.3,2967.0,0.00426471]
[1769146015368,0.41877894,2968.2,2967.0,0.00426471]
[1769146015573,0.14908573,2968.4,2967.0,0.00426471]
[1769146015863,0.56304121,2968.3,2967.0,0.00426471]
[1769146016066,0.41901143,2968.2,2967.0,0.00426471]
[1769146016271,0.41901143,2968.1,2967.0,0.00426471]
[1769146016472,0.14402978,2968.3,2967.0,0.00426471]
[1769146016673,0.41915489,2968.2,2967.0,0.00426471]
[1769146016874,0.41915489,2968.1,2967.0,0.00426471]
[1769146017073,0.14402978,2968.3,2967.0,0.00426471]
[1769146017369,0.41916945,2968.2,2967.0,0.00426471]
[1769146017573,0.41916945,2968.1,2967.0,0.00426471]
[1769146017774,0.14402978,2968.3,2967.0,0.00426471]
[1769146017978,0.41935191,2968.2,2967.0,0.00426471]
[1769146018177,0.14402978,2968.3,2967.0,0.00426471]
[1769146018378,0.41936162,2968.2,2967.0,0.00426471]
[1769146018579,0.41936162,2968.1,2967.0,0.00426471]
[1769146018778,0.14402978,2968.3,2967.0,0.00426471]
[1769146018976,0.41962806,2968.2,2967.0,0.00426471]
[1769146019277,0.41962806,2968.1,2967.0,0.00426471]
[1769146019472,0.00505595,2968.4,2967.0,0.15224703]
[1769146019678,1.37160183,2968.3,2967.0,0.15224703]
[1769146019982,0.41966941,2968.2,2967.0,0.15224703]
[1769146020181,0.00505595,2968.4,2967.0,0.15224703]
[1769146020476,0.41969459,2968.3,2967.0,0.15224703]
[1769146020675,0.00505595,2968.4,2967.0,0.15224703]
[1769146020874,0.41970453,2968.3,2967.0,0.15224703]
[1769146021070,0.00505595,2968.4,2967.1,0.14798232]
[1769146021270,0.00505595,2968.4,2967.3,0.14798232]
[1769146021471,0.00505595,2968.4,2967.0,0.00426471]
[1769146021472,0.00505595,2968.4,2967.5,0.14798232]
[1769146021867,0.00505595,2968.4,2967.0,0.00426471]
[1769146021868,0.00505595,2968.4,2967.1,0.14084006]
[1769146022068,0.15041085,2968.4,2967.0,0.00426471]
[1769146022272,0.41683337,2968.3,2967.0,0.00426471]
[1769146022475,0.15041085,2968.4,2967.0,0.00426471]
[1769146022674,0.1453549,2968.2,2967.0,0.00426471]
[1769146026184,0.14309269,2968.0,2966.1,0.1423773]
[1769146026384,0.41684503,2967.9,2966.1,0.1423773]
[1769146026582,0.41684503,2967.8,2966.2,0.1423773]
[1769146026783,0.14309269,2968.0,2966.3,0.1423773]
[1769146026982,0.41679033,2967.9,2966.3,0.1423773]
[1769146027180,0.55988302,2967.8,2966.3,0.14490997]
[1769146027388,0.14309269,2967.8,2966.3,0.14490997]
[1769146028287,0.14309269,2968.2,2966.3,0.14490997]
[1769146028486,1.36818273,2968.1,2966.3,0.14490997]
[1769146028690,0.41668032,2968.0,2966.3,0.14490997]
[1769146028882,0.41668032,2967.9,2966.3,0.14490997]
[1769146029084,0.41668032,2967.8,2966.3,0.14490997]
[1769146029282,0.14309269,2968.2,2966.3,0.14490997]
[1769146029483,1.36806434,2968.1,2966.3,0.14490997]
[1769146029685,0.55973904,2968.0,2966.3,3.73790997]
[1769146029880,0.41664635,2967.9,2966.3,3.73790997]
[1769146033388,0.41664635,2967.9,2966.4,0.1423773]
[1769146033590,0.41664635,2967.9,2966.4,0.3111173]
[1769146035779,0.41664635,2967.9,2966.5,0.1423773]
[1769146035986,0.41664635,2967.8,2966.6,0.88985278]
[1769146036186,0.41664635,2967.7,2966.7,0.1423773]
[1769146036389,0.14814864,2968.4,2966.7,0.1423773]
[1769146036686,1.37239988,2968.3,2966.7,0.1423773]
[1769146036891,1.37239988,2968.2,2966.7,0.1423773]
[1769146037086,1.37239988,2968.1,2966.7,0.1423773]
[1769146037391,0.41780236,2968.0,2967.0,0.88985278]
[1769146037591,0.14814864,2968.4,2967.0,1.03223008]
[1769146037785,0.41794305,2968.3,2967.0,1.03223008]
[1769146037984,0.41794305,2968.2,2967.0,1.03223008]
[1769146038182,0.41794305,2968.1,2967.0,1.03223008]
[1769146038384,0.00505595,2968.4,2967.0,1.03223008]
[1769146038593,0.40676356,2968.3,2967.0,1.03223008]
[1769146038793,0.40676356,2968.2,2967.0,1.03223008]
[1769146038996,0.40676356,2968.1,2967.0,1.03223008]
[1769146039188,0.00505595,2968.4,2967.0,1.03223008]
[1769146039389,0.40394581,2968.3,2967.0,1.03223008]
[1769146039694,0.40394581,2968.2,2967.0,1.03223008]
[1769146039989,0.00505595,2968.4,2967.0,1.03223008]
[1769146040198,0.40393179,2968.3,2967.0,1.03223008]
[1769146040387,0.40393179,2968.2,2967.0,1.03223008]
[1769146040586,0.00505595,2968.4,2967.0,1.03223008]
[1769146040788,0.40390871,2968.3,2967.0,1.03223008]
[1769146040984,0.40390871,2968.2,2967.0,1.03223008]
[1769146041189,0.00505595,2968.4,2967.1,0.1423773]
[1769146041488,0.40390468,2968.3,2967.1,0.1423773]
[1769146041689,0.40390468,2968.2,2967.1,0.1423773]
[1769146041888,0.00505595,2968.4,2967.1,0.1423773]
[1769146042191,0.40388835,2968.3,2967.1,0.1423773]
[1769146042394,0.00505595,2968.4,2967.1,0.1423773]
[1769146042695,0.4038667,2968.3,2967.1,0.1423773]
[1769146042896,0.00505595,2968.4,2967.1,0.1423773]
[1769146043096,0.4038745,2968.3,2967.1,0.1423773]
[1769146043290,0.00505595,2968.4,2967.1,0.3110773]
[1769146043496,0.00433591,2969.0,2967.5,0.3110573]
[1769146043696,1.35880582,2968.9,2967.5,0.3110573]
[1769146043896,0.40389596,2968.8,2967.5,0.3110573]
[1769146044097,0.40389596,2968.7,2967.5,0.3110573]
[1769146044300,0.00433591,2969.0,2967.5,0.3110573]
[1769146044499,0.40377311,2968.9,2967.5,0.3110573]
[1769146044688,0.40377311,2968.8,2967.6,0.3110473]
[1769146044893,0.40377311,2968.7,2967.6,0.3110473]
[1769146045199,0.00433591,2969.0,2967.8,0.88985278]
[1769146045398,0.40360775,2968.9,2967.8,0.88985278]
[1769146045599,0.40360775,2968.8,2967.8,0.88985278]
[1769146045801,0.00433591,2969.0,2967.9,0.1423773]
[1769146047901,0.14309269,2969.6,2968.0,0.1423773]
[1769146048103,0.40326904,2969.5,2968.0,0.1423773]
[1769146048401,0.14309269,2969.3,2967.9,0.16866]
[1769146048598,0.40326904,2969.2,2967.9,0.16866]
[1769146048798,0.00367259,2969.2,2967.9,0.16866]
[1769146049400,0.00367259,2969.2,2967.9,0.3110373]
[1769146049602,0.00367259,2969.2,2968.0,0.1423773]
[1769146050905,0.00367259,2969.2,2967.9,0.16866]
[1769146051408,0.00367259,2969.2,2968.3,0.00505595]
[1769146056606,0.14200778,2969.2,2968.3,0.00505595]
[1769146056904,0.13833519,2968.9,2967.5,0.14768725]
[1769146059412,0.00505595,2969.0,2967.5,0.14768725]
[1769146060108,0.00505595,2969.0,2967.4,2.58668]
[1769146060109,0.00505595,2969.0,2967.7,0.14768725]
[1769146060614,0.00505595,2969.0,2968.0,0.14768725]
[1769146063513,0.00505595,2969.0,2968.0,0.31633725]
[1769146063713,0.00505595,2969.0,2968.1,0.14768725]
[1769146063918,0.00505595,2969.0,2968.1,2.80568725]
[1769146069718,0.00505595,2969.0,2968.1,2.658]
[1769146069920,0.00505595,2969.0,2968.2,3.558]
[1769146070719,0.00505595,2969.0,2968.2,3.70568725]